bitfinex/quotes_SOLUSD_20230112
["timestamp","ask_amount","ask_price","bid_price","bid_amount"]
[1673533745622,63.23,16.227,16.209,114.496]
[1673533745942,63.23,16.227,16.204,23.674]
[1673533745943,121.27,16.22,16.2,117.0633]
[1673533746154,86.25,16.219,16.2,117.0633]
[1673533746479,17.0,16.218,16.2,117.0633]
[1673533746677,46.26,16.217,16.2,117.0633]
[1673533746891,17.0,16.216,16.2,117.0633]
[1673533747097,46.26,16.215,16.2,117.0633]
[1673533747308,17.0,16.214,16.2,117.0633]
[1673533747630,46.26,16.215,16.2,117.0633]
[1673533747828,46.25,16.218,16.201,15.22337541]
[1673533748037,46.25,16.218,16.2,117.0633]
[1673533748265,24.3,16.21,16.2,117.0633]
[1673533748479,24.3,16.21,16.198,119.1978]
[1673533748682,24.3,16.21,16.199,20.0]
[1673533748888,17.0,16.209,16.199,20.0]
[1673533749508,17.0,16.209,16.195,20.0]
[1673533749719,17.0,16.209,16.196,20.0]
[1673533749933,17.0,16.209,16.197,20.0]
[1673533750772,20.0,16.208,16.193,115.663]
[1673533750989,63.28,16.207,16.193,115.663]
[1673533751509,63.28,16.207,16.173,109.185]
[1673533751724,24.3,16.2,16.185,20.0]
[1673533751931,17.0,16.199,16.185,20.0]
[1673533752359,17.0,16.199,16.186,20.0]
[1673533753215,24.3,16.2,16.187,35.22337541]
[1673533753435,46.29,16.205,16.188,20.0]
[1673533753927,37.0,16.204,16.188,20.0]
[1673533754137,46.3,16.203,16.188,20.0]
[1673533754346,17.0,16.202,16.188,20.0]
[1673533754573,20.0,16.201,16.184,113.2451]
[1673533754766,20.0,16.199,16.176,20.0]
[1673533755096,46.31,16.198,16.177,15.22337541]
[1673533755294,20.0,16.198,16.177,15.22337541]
[1673533755622,46.31,16.197,16.176,60.9478482]
[1673533755817,46.31,16.197,16.178,20.0]
[1673533756233,46.31,16.197,16.179,15.22337541]
[1673533756567,46.31,16.197,16.175,116.0168]
[1673533756568,24.22,16.19,16.175,116.0168]
[1673533756776,17.0,16.189,16.175,116.0168]
[1673533757502,24.22,16.19,16.176,15.22337541]
[1673533758246,24.22,16.19,16.177,20.0]
[1673533758895,17.0,16.189,16.177,20.0]
[1673533759623,46.32,16.193,16.177,20.0]
[1673533759834,17.0,16.192,16.178,20.0]
[1673533760043,17.0,16.192,16.179,20.0]
[1673533761609,17.0,16.192,16.176,20.0]
[1673533761610,46.33,16.191,16.177,20.0]
[1673533761934,17.0,16.19,16.178,20.0]
[1673533762132,17.0,16.19,16.179,20.0]
[1673533762555,46.31,16.197,16.179,35.22337541]
[1673533762878,17.0,16.196,16.18,20.0]
[1673533763809,46.31,16.197,16.18,20.0]
[1673533764019,121.72,16.2,16.181,15.22337541]
[1673533764222,20.0,16.199,16.182,20.0]
[1673533764857,66.31,16.199,16.182,20.0]
[1673533765075,17.0,16.198,16.182,20.0]
[1673533765496,17.0,16.198,16.181,15.22337541]
[1673533765715,17.0,16.198,16.18,20.0]
[1673533766246,17.0,16.198,16.18,35.22337541]
[1673533768007,17.0,16.198,16.18,20.0]
[1673533768468,17.0,16.198,16.179,20.0]
[1673533768659,24.14,16.19,16.178,20.0]
[1673533768876,17.0,16.189,16.177,20.0]
[1673533770553,24.14,16.19,16.177,20.0]
[1673533770764,24.14,16.19,16.178,20.0]
[1673533770985,46.31,16.198,16.178,20.0]
[1673533771197,46.31,16.198,16.179,15.22337541]
[1673533772237,20.0,16.196,16.179,15.22337541]
[1673533772456,63.32,16.195,16.178,20.0]
[1673533772653,63.32,16.195,16.177,20.0]
[1673533773606,20.0,16.194,16.177,20.0]
[1673533773813,24.3,16.19,16.177,20.0]
[1673533774032,17.0,16.189,16.177,20.0]
[1673533774642,24.3,16.19,16.176,20.0]
[1673533774877,24.3,16.19,16.177,20.0]
[1673533776121,17.0,16.189,16.177,20.0]
[1673533776324,17.0,16.189,16.177,35.22337541]
[1673533776554,17.0,16.189,16.179,20.0]
[1673533777184,24.3,16.19,16.179,20.0]
[1673533778342,17.0,16.189,16.179,20.0]
[1673533779077,17.0,16.189,16.175,116.0168]
[1673533779280,20.0,16.188,16.175,116.0168]
[1673533779495,17.0,16.187,16.175,116.0168]
[1673533779903,63.34,16.187,16.17,35.22337541]
[1673533780330,17.0,16.187,16.17,20.0]
[1673533780955,130.44,16.19,16.172,15.22337541]
[1673533781165,26.12,16.19,16.173,40.0]
[1673533781594,26.12,16.19,16.174,15.22337541]
[1673533781817,26.12,16.19,16.174,127.62627541]
[1673533782125,26.12,16.19,16.175,55.22337541]
[1673533782314,17.0,16.189,16.175,55.22337541]
[1673533782523,26.12,16.19,16.176,20.0]
[1673533783050,26.12,16.19,16.175,35.22337541]
[1673533783260,26.12,16.19,16.173,20.0]
[1673533783261,20.0,16.189,16.171,129.7019]
[1673533783511,46.34,16.188,16.171,129.7019]
[1673533783926,17.0,16.187,16.171,129.7019]
[1673533784125,46.34,16.186,16.171,129.7019]
[1673533784343,17.0,16.185,16.171,129.7019]
[1673533785914,26.12,16.19,16.171,144.92527541]
[1673533786130,46.31,16.199,16.172,59.8678482]
[1673533786345,20.0,16.198,16.172,59.8678482]
[1673533786555,20.0,16.198,16.173,35.22337541]
[1673533786746,20.0,16.198,16.174,37.0]
[1673533786963,20.0,16.198,16.175,20.0]
[1673533787168,20.0,16.198,16.176,17.0]
[1673533787408,20.0,16.198,16.177,20.0]
[1673533787604,20.0,16.198,16.178,20.0]
[1673533788142,25.89,16.2,16.179,35.22337541]
[1673533788350,113.5478,16.209,16.18,44.97]
[1673533788541,113.5478,16.209,16.181,20.0]
[1673533788744,159.8278,16.209,16.182,21.92]
[1673533788965,159.8278,16.209,16.183,17.0]
[1673533789179,159.8278,16.209,16.185,20.0]
[1673533789407,159.8278,16.209,16.186,20.0]
[1673533789408,46.28,16.209,16.186,20.0]
[1673533789593,130.31,16.21,16.186,20.0]
[1673533789802,20.0,16.208,16.187,17.14337541]
[1673533790025,26.12,16.21,16.188,20.0]
[1673533790347,26.12,16.21,16.189,114.113]
[1673533790559,26.12,16.21,16.19,37.0]
[1673533790758,130.54,16.21,16.191,4.404]
[1673533790958,17.0,16.209,16.19,24.404]
[1673533791163,63.28,16.209,16.19,24.404]
[1673533791377,20.0,16.208,16.19,24.404]
[1673533791699,130.54,16.21,16.191,30.44675082]
[1673533791908,26.12,16.21,16.192,6.503]
[1673533792125,26.12,16.21,16.193,20.0]
[1673533792327,26.12,16.21,16.194,8.972]
[1673533792542,26.12,16.21,16.195,20.0]
[1673533792873,26.12,16.21,16.196,20.0]
[1673533793509,26.12,16.21,16.197,13.27]
[1673533793698,26.12,16.21,16.198,20.0]
[1673533794442,17.0,16.209,16.198,20.0]
[1673533794653,17.0,16.209,16.193,35.02]
[1673533794978,66.28,16.208,16.186,15.32]
[1673533795174,17.0,16.207,16.186,30.54337541]
[1673533795503,17.0,16.207,16.19,32.81]
[1673533795717,17.0,16.207,16.19,12.81]
[1673533795899,26.05,16.2,16.187,20.0]
[1673533796233,17.0,16.199,16.187,20.0]
[1673533797583,17.0,16.199,16.186,11.31]
[1673533797801,17.0,16.199,16.187,20.0]
[1673533798567,20.0,16.198,16.187,20.0]
[1673533798758,20.0,16.198,16.184,119.7]
[1673533798759,17.0,16.197,16.184,119.7]
[1673533799917,20.0,16.204,16.184,119.7]
[1673533799918,46.28,16.207,16.185,22.272]
[1673533800223,46.28,16.209,16.185,37.49537541]
[1673533800415,46.28,16.209,16.186,55.22337541]
[1673533800628,24.08,16.21,16.187,7.275]
[1673533800835,24.08,16.21,16.188,38.92]
[1673533801074,24.08,16.21,16.189,10.62]
[1673533801592,24.08,16.21,16.19,57.0]
[1673533801805,24.08,16.21,16.191,12.56]
[1673533801992,24.08,16.21,16.192,108.3118]
[1673533802205,97.36,16.22,16.193,34.36]
[1673533802206,46.25,16.219,16.193,34.36]
[1673533802419,46.26,16.217,16.194,20.0]
[1673533802730,24.28,16.21,16.195,35.7]
[1673533803154,24.28,16.21,16.195,20.0]
[1673533803364,24.28,16.21,16.196,18.64]
[1673533803573,24.28,16.21,16.197,20.0]
[1673533803793,24.28,16.21,16.198,19.45]
[1673533804002,46.25,16.219,16.198,36.45]
[1673533804212,20.0,16.218,16.2,20.0]
[1673533804539,20.0,16.218,16.201,140.5812]
[1673533804723,24.08,16.22,16.201,140.5812]
[1673533805169,19.14496728,16.227,16.202,37.0]
[1673533805365,46.23,16.226,16.203,43.15]
[1673533805695,46.23,16.226,16.204,20.0]
[1673533805892,65.37496728,16.226,16.205,22.62]
[1673533806210,65.37496728,16.226,16.206,20.0]
[1673533806631,65.37496728,16.226,16.203,20.0]
[1673533806632,65.37496728,16.226,16.203,44.71]
[1673533806832,17.0,16.225,16.202,20.0]
[1673533807041,46.24,16.224,16.203,41.65]
[1673533807252,46.24,16.224,16.205,20.0]
[1673533807470,46.22,16.229,16.206,41.38]
[1673533807682,46.22,16.229,16.207,20.0]
[1673533808001,24.28,16.23,16.208,33.67492]
[1673533808210,46.19,16.239,16.209,139.48749]
[1673533808401,46.19,16.239,16.21,29.34]
[1673533808608,46.19,16.239,16.211,132.5355]
[1673533808824,19.14496728,16.238,16.212,27.97]
[1673533809167,66.2,16.237,16.213,40.0]
[1673533809364,66.2,16.237,16.214,43.2]
[1673533809365,46.2,16.237,16.214,43.2]
[1673533809690,121.32,16.24,16.215,20.0]
[1673533809691,46.19,16.239,16.215,20.0]
[1673533809900,46.19,16.239,16.216,26.97]
[1673533809901,20.0,16.238,16.216,26.97]
[1673533810107,20.0,16.238,16.217,20.0]
[1673533810108,24.28,16.23,16.217,20.0]
[1673533810712,24.28,16.23,16.212,20.0]
[1673533810928,20.0,16.238,16.213,45.26]
[1673533811138,46.2,16.237,16.215,20.0]
[1673533811366,46.2,16.237,16.216,44.32]
[1673533811557,46.2,16.237,16.217,20.0]
[1673533811764,24.17,16.24,16.218,28.91]
[1673533811973,46.16,16.249,16.219,26.81029]
[1673533812195,20.0,16.248,16.221,20.0]
[1673533812520,46.17,16.247,16.222,51.38]
[1673533812733,46.17,16.247,16.223,20.0]
[1673533812919,46.17,16.247,16.224,51.25]
[1673533813130,20.0,16.248,16.225,20.0]
[1673533813339,20.0,16.248,16.226,78.39736]
[1673533813762,20.0,16.248,16.226,93.62073541]
[1673533813977,20.0,16.249,16.227,36.78404168]
[1673533814182,19.14496728,16.254,16.226,134.56858361]
[1673533814183,24.28,16.25,16.229,20.0]
[1673533814397,66.16,16.249,16.23,31.07]
[1673533814841,17.0,16.248,16.23,31.07]
[1673533815021,17.0,16.248,16.231,20.0]
[1673533815237,24.28,16.25,16.233,20.0]
[1673533815238,17.0,16.249,16.233,20.0]
[1673533815453,17.0,16.249,16.234,52.64]
[1673533815986,46.15,16.253,16.235,20.0]
[1673533816187,19.14496728,16.254,16.237,20.0]
[1673533816387,46.15,16.253,16.238,20.0]
[1673533816810,46.14,16.259,16.239,17.0]
[1673533817018,46.11,16.269,16.24,52.49]
[1673533817249,19.14496728,16.266,16.241,20.0]
[1673533817447,46.12,16.265,16.242,34.17]
[1673533817659,46.12,16.265,16.239,112.2948]
[1673533817885,19.14496728,16.264,16.239,112.2948]
[1673533818077,20.0,16.262,16.239,112.2948]
[1673533818282,66.13,16.261,16.239,112.2948]
[1673533818512,121.4,16.26,16.239,112.2948]
[1673533818723,83.14,16.259,16.239,112.2948]
[1673533818921,66.14,16.259,16.239,112.2948]
[1673533819245,39.14496728,16.258,16.239,112.2948]
[1673533819434,46.14,16.257,16.236,111.0355]
[1673533819642,46.14,16.257,16.218,225.02816415]
[1673533819643,20.0,16.256,16.228,22.48]
[1673533819874,46.15,16.255,16.229,117.4026]
[1673533820210,20.0,16.253,16.229,110.5965]
[1673533820385,121.4,16.25,16.224,22.72]
[1673533820599,121.72,16.24,16.219,110.5965]
[1673533820810,83.19,16.239,16.219,110.5965]
[1673533821247,83.19,16.239,16.22,20.0]
[1673533821567,83.19,16.239,16.219,110.5965]
[1673533821760,19.14496728,16.238,16.219,110.5965]
[1673533821965,63.2,16.237,16.219,110.5965]
[1673533823136,20.0,16.236,16.219,110.5965]
[1673533823453,63.2,16.235,16.219,110.5965]
[1673533823658,63.2,16.235,16.213,29.869]
[1673533823659,24.1,16.23,16.213,20.0]
[1673533823869,121.22,16.23,16.2,132.1775]
[1673533824081,66.22,16.229,16.201,20.0]
[1673533824294,20.0,16.228,16.201,130.8238]
[1673533824510,46.23,16.227,16.201,146.04717541]
[1673533825035,121.09,16.22,16.195,37.3949482]
[1673533825219,24.28,16.21,16.192,117.43]
[1673533825436,24.28,16.21,16.194,52.00741709]
[1673533825663,24.28,16.21,16.194,36.78404168]
[1673533825957,17.0,16.209,16.195,20.0]
[1673533826703,17.0,16.209,16.192,117.43]
[1673533827324,17.0,16.209,16.193,20.0]
[1673533827767,20.0,16.208,16.192,117.43]
[1673533827974,20.0,16.206,16.192,117.43]
[1673533828198,24.1,16.2,16.184,117.43]
[1673533828493,17.0,16.209,16.185,15.22337541]
[1673533828712,24.13,16.21,16.186,6.82418]
[1673533829116,24.13,16.21,16.187,55.22337541]
[1673533829339,24.13,16.21,16.188,9.96834]
[1673533829533,24.13,16.21,16.189,20.0]
[1673533829744,24.13,16.21,16.19,6.169]
[1673533829977,46.25,16.219,16.192,20.0]
[1673533830160,24.13,16.22,16.193,32.27]
[1673533830374,24.13,16.22,16.194,134.50881]
[1673533830587,46.22,16.229,16.195,40.01039]
[1673533830813,20.0,16.228,16.196,7.77996]
[1673533831124,20.0,16.228,16.201,20.0]
[1673533831326,20.0,16.228,16.202,56.57]
[1673533831531,20.0,16.228,16.203,6.81702]
[1673533831746,20.0,16.228,16.204,153.779]
[1673533831952,20.0,16.228,16.205,20.0]
[1673533832162,20.0,16.229,16.206,58.53]
[1673533832599,19.08,16.23,16.206,72.79337541]
[1673533832792,19.08,16.23,16.207,1.92]
[1673533833001,46.19,16.239,16.207,1.92]
[1673533833002,46.19,16.239,16.209,20.0]
[1673533833216,46.19,16.239,16.211,20.0]
[1673533833428,46.19,16.239,16.212,43.53]
[1673533834074,20.0,16.238,16.213,20.0]
[1673533834395,24.1,16.23,16.214,45.82]
[1673533834919,24.1,16.23,16.213,24.47]
[1673533835108,102.36496728,16.229,16.206,24.48]
[1673533835317,102.36496728,16.229,16.205,22.85]
[1673533835529,24.28,16.22,16.205,22.85]
[1673533835864,17.0,16.219,16.205,22.85]
[1673533836266,24.28,16.22,16.205,22.85]
[1673533836491,24.28,16.22,16.206,20.0]
[1673533836890,24.28,16.22,16.205,22.85]
[1673533836891,17.0,16.219,16.203,25.34]
[1673533837099,17.0,16.219,16.202,20.0]
[1673533837328,17.0,16.219,16.201,45.81]
[1673533837754,24.32,16.22,16.201,45.81]
[1673533837940,24.32,16.22,16.206,20.0]
[1673533838155,46.22,16.228,16.207,21.97]
[1673533838591,46.22,16.228,16.208,20.0]
[1673533838905,121.2,16.23,16.21,20.0]
[1673533839108,24.08,16.23,16.211,23.9]
[1673533839324,24.08,16.23,16.212,17.0]
[1673533839723,24.08,16.23,16.213,25.34]
[1673533840271,121.2,16.23,16.211,25.38]
[1673533840469,46.22,16.228,16.207,25.39]
[1673533840676,17.0,16.227,16.208,35.22337541]
[1673533840889,17.0,16.227,16.21,20.0]
[1673533841305,46.22,16.229,16.21,20.0]
[1673533841523,46.2,16.235,16.211,39.68337541]
[1673533841740,46.19,16.239,16.212,20.96]
[1673533842062,46.19,16.239,16.213,47.97]
[1673533842373,46.19,16.239,16.213,63.19337541]
[1673533842568,46.19,16.239,16.214,167.80687541]
[1673533842792,24.52,16.24,16.216,20.0]
[1673533842991,24.52,16.24,16.217,47.53]
[1673533843319,24.52,16.24,16.218,20.0]
[1673533843535,24.52,16.24,16.219,29.86]
[1673533843716,24.52,16.24,16.22,37.0]
[1673533843931,46.19,16.239,16.22,20.0]
[1673533844145,20.0,16.238,16.218,110.6432]
[1673533844453,63.2,16.237,16.219,20.0]
[1673533844671,82.34496728,16.237,16.219,20.0]
[1673533844892,19.14496728,16.236,16.219,20.0]
[1673533845108,63.2,16.235,16.219,20.0]
[1673533845730,20.0,16.234,16.216,20.0]
[1673533845931,63.21,16.233,16.216,20.0]
[1673533846553,63.21,16.233,16.212,31.22]
[1673533846783,63.21,16.233,16.2,134.0581]
[1673533846784,21.59,16.23,16.21,51.34]
[1673533846980,86.22,16.229,16.21,20.0]
[1673533847196,17.0,16.228,16.208,20.0]
[1673533847425,17.0,16.228,16.207,140.0979]
[1673533847426,46.23,16.227,16.207,140.0979]
[1673533847651,17.0,16.226,16.207,140.0979]
[1673533847843,20.0,16.225,16.207,140.0979]
[1673533848057,17.0,16.224,16.207,140.0979]
[1673533849435,17.0,16.224,16.201,35.22337541]
[1673533849436,21.59,16.22,16.201,22.74]
[1673533849633,46.25,16.219,16.201,22.74]
[1673533849826,17.0,16.218,16.201,22.74]
[1673533850262,21.59,16.22,16.202,15.22337541]
[1673533850474,46.22,16.228,16.203,23.17]
[1673533850805,20.0,16.227,16.204,20.0]
[1673533851111,20.0,16.227,16.205,24.33]
[1673533851326,20.0,16.227,16.206,17.0]
[1673533851515,20.0,16.227,16.207,159.0684]
[1673533851734,20.0,16.227,16.207,20.0]
[1673533851935,46.23,16.226,16.208,26.29]
[1673533852145,17.0,16.225,16.209,20.0]
[1673533852368,17.0,16.226,16.209,20.0]
[1673533852696,20.0,16.224,16.209,20.0]
[1673533852884,17.0,16.223,16.209,20.0]
[1673533853100,21.59,16.22,16.205,20.0]
[1673533853298,63.25,16.219,16.198,24.93]
[1673533853511,102.39496728,16.219,16.195,144.546]
[1673533853720,102.39496728,16.219,16.196,20.0]
[1673533853935,83.25,16.219,16.197,24.71]
[1673533854460,108.14,16.22,16.198,35.22337541]
[1673533854670,46.23,16.226,16.199,46.73]
[1673533854877,20.0,16.225,16.2,37.0]
[1673533855087,20.0,16.225,16.202,20.0]
[1673533855319,20.0,16.225,16.203,51.62]
[1673533855504,20.0,16.225,16.204,119.616]
[1673533855720,20.0,16.225,16.205,51.25]
[1673533856038,17.0,16.224,16.205,51.25]
[1673533856457,17.0,16.224,16.205,71.25]
[1673533857002,17.0,16.225,16.205,71.25]
[1673533857527,66.22,16.228,16.206,20.0]
[1673533857839,66.22,16.228,16.207,60.78]
[1673533857840,46.22,16.228,16.207,60.78]
[1673533858049,46.22,16.229,16.207,60.78]
[1673533858260,20.0,16.228,16.207,76.00337541]
[1673533858476,20.0,16.228,16.207,60.78]
[1673533858698,20.0,16.228,16.208,20.0]
[1673533858916,20.0,16.229,16.209,45.02]
[1673533859227,20.0,16.229,16.21,17.0]
[1673533859421,20.0,16.229,16.211,25.48]
[1673533859632,20.0,16.229,16.212,20.0]
[1673533860059,20.0,16.229,16.213,26.02]
[1673533860250,46.2,16.235,16.213,26.02]
[1673533860464,46.2,16.235,16.215,20.0]
[1673533860671,46.19,16.239,16.216,46.12]
[1673533860882,20.0,16.249,16.216,46.12]
[1673533860883,46.17,16.248,16.216,169.76585]
[1673533861118,19.14496728,16.245,16.217,17.0]
[1673533861427,46.18,16.244,16.218,164.9223]
[1673533861626,20.0,16.243,16.22,20.0]
[1673533861839,46.18,16.242,16.221,45.92]
[1673533862149,17.0,16.241,16.221,25.92]
[1673533862359,67.78,16.24,16.219,26.2]
[1673533862694,20.0,16.238,16.218,117.6823]
[1673533862883,46.2,16.237,16.218,117.6823]
[1673533863091,17.0,16.236,16.216,116.8343]
[1673533863326,46.2,16.235,16.216,116.8343]
[1673533863515,17.0,16.234,16.216,116.8343]
[1673533863730,66.21,16.233,16.211,22.23]
[1673533863940,66.21,16.233,16.212,108.6093]
[1673533863941,17.0,16.232,16.212,108.6093]
[1673533864251,46.22,16.231,16.213,20.0]
[1673533864475,38.59,16.23,16.212,108.6093]
[1673533864673,20.0,16.228,16.207,17.1]
[1673533864877,63.23,16.227,16.203,126.0593]
[1673533865094,63.23,16.227,16.203,125.5593]
[1673533865622,20.0,16.226,16.204,20.0]
[1673533865831,20.0,16.226,16.203,17.45]
[1673533865832,21.59,16.22,16.203,17.45]
[1673533866043,37.0,16.219,16.201,13.87]
[1673533866367,37.0,16.219,16.192,13.47]
[1673533866578,46.25,16.218,16.192,13.47]
[1673533866788,37.0,16.217,16.193,20.0]
[1673533866978,46.26,16.216,16.192,13.47]
[1673533867183,17.0,16.215,16.192,13.47]
[1673533867413,21.59,16.21,16.192,13.47]
[1673533867623,37.0,16.209,16.192,13.47]
[1673533867839,37.0,16.209,16.186,17.87]
[1673533867840,46.28,16.208,16.186,17.87]
[1673533868047,46.28,16.208,16.183,18.5]
[1673533868362,17.0,16.207,16.183,18.5]
[1673533868576,46.29,16.206,16.183,18.5]
[1673533868986,37.0,16.205,16.183,18.5]
[1673533869186,46.29,16.204,16.183,18.5]
[1673533869396,17.0,16.203,16.183,18.5]
[1673533869607,20.0,16.202,16.184,20.0]
[1673533869816,17.0,16.201,16.184,20.0]
[1673533870043,17.0,16.201,16.183,18.5]
[1673533870252,174.44,16.2,16.175,135.1094]
[1673533870571,17.0,16.199,16.175,135.1094]
[1673533870897,66.31,16.198,16.175,135.1094]
[1673533871092,17.0,16.197,16.175,113.2494]
[1673533871299,46.32,16.196,16.174,18.65]
[1673533871532,17.0,16.195,16.166,130.4294]
[1673533871739,66.32,16.194,16.167,20.0]
[1673533872055,17.0,16.193,16.168,15.72]
[1673533872462,17.0,16.193,16.169,20.0]
[1673533872670,17.0,16.193,16.17,16.03]
[1673533873208,58.86640541,16.193,16.171,20.0]
[1673533873422,46.33,16.192,16.172,17.78]
[1673533873624,17.0,16.191,16.173,40.0]
[1673533873834,17.0,16.193,16.174,18.88]
[1673533874155,17.0,16.193,16.175,20.0]
[1673533874472,20.0,16.192,16.176,18.72]
[1673533874689,63.33,16.191,16.177,20.0]
[1673533875000,63.33,16.191,16.175,20.0]
[1673533875217,63.33,16.191,16.17,18.17]
[1673533875409,127.85,16.19,16.17,18.17]
[1673533875626,66.34,16.189,16.165,18.74]
[1673533875834,37.0,16.188,16.165,18.74]
[1673533876045,46.34,16.187,16.167,20.0]
[1673533876256,108.03,16.2,16.167,37.2]
[1673533876573,108.03,16.2,16.168,6.83178]
[1673533876574,21.67,16.2,16.168,6.83178]
[1673533876894,46.29,16.204,16.17,43.34]
[1673533877085,46.28,16.209,16.171,33.63051]
[1673533877291,46.28,16.209,16.172,7.79009]
[1673533877513,46.28,16.209,16.173,36.27966]
[1673533877715,46.28,16.209,16.174,47.78924]
[1673533877928,46.28,16.209,16.175,40.16882]
[1673533878138,20.0,16.208,16.176,164.7837]
[1673533878344,46.28,16.207,16.177,34.79]
[1673533878558,65.42496728,16.207,16.178,40.0]
[1673533878766,46.28,16.207,16.179,52.5]
[1673533878975,46.28,16.209,16.18,20.0]
[1673533879309,21.59,16.2,16.181,36.73]
[1673533879530,46.31,16.199,16.176,119.9953]
[1673533880129,56.14496728,16.198,16.177,53.94]
[1673533880359,17.0,16.198,16.178,20.0]
[1673533880568,17.0,16.198,16.179,32.86]
[1673533880975,46.28,16.209,16.179,32.86]
[1673533881208,20.0,16.208,16.18,28.22671]
[1673533881418,20.0,16.208,16.182,20.0]
[1673533881627,20.0,16.208,16.183,55.6]
[1673533881842,20.0,16.208,16.184,1.92]
[1673533882046,20.0,16.208,16.185,36.77]
[1673533882242,20.0,16.209,16.186,20.0]
[1673533882461,20.0,16.209,16.188,20.0]
[1673533882790,85.42496728,16.209,16.189,59.15]
[1673533882981,85.42496728,16.209,16.189,20.0]
[1673533883189,66.28,16.209,16.189,20.0]
[1673533883609,17.0,16.208,16.187,20.0]
[1673533883832,46.28,16.207,16.188,38.09]
[1673533884028,300.3386,16.219,16.189,20.0]
[1673533884029,46.28,16.209,16.189,20.0]
[1673533884240,107.93,16.22,16.189,20.0]
[1673533884241,46.26,16.217,16.19,36.54]
[1673533884450,46.25,16.219,16.192,20.0]
[1673533884672,46.25,16.219,16.191,37.0]
[1673533884673,19.14496728,16.217,16.187,39.02]
[1673533884881,21.59,16.21,16.189,20.0]
[1673533885094,46.28,16.209,16.189,20.0]
[1673533885309,46.28,16.209,16.19,37.21]
[1673533885525,65.42496728,16.209,16.187,37.21]
[1673533885727,20.0,16.208,16.187,37.21]
[1673533885938,66.28,16.207,16.187,37.21]
[1673533886260,85.42496728,16.207,16.183,57.07]
[1673533886461,19.14496728,16.206,16.183,20.0]
[1673533886671,46.29,16.205,16.186,20.0]